bitfinex/quotes_SOLUSD_20250712
["timestamp","ask_amount","ask_price","bid_price","bid_amount"]
[1752333709049,4.98542419,159.28,159.22,0.06]
[1752333709260,5.65542419,159.28,159.22,0.06]
[1752333709459,0.67,159.27,159.22,0.06]
[1752333710450,0.78488007,159.26,159.22,0.06]
[1752333710956,0.67,159.25,159.22,0.06]
[1752333713837,0.78497864,159.24,159.22,0.06]
[1752333714070,1.45492935,159.25,159.22,0.06]
[1752333714364,0.67,159.23,159.22,0.06]
[1752333715045,4.98552275,159.26,159.22,0.06]
[1752333715248,0.67,159.23,159.22,0.06]
[1752333715448,0.67,159.23,159.22,32.82]
[1752333717663,0.67,159.25,159.22,32.82]
[1752333719364,4.19511667,159.26,159.23,0.53]
[1752333719566,0.67,159.27,159.23,0.53]
[1752333720371,0.67,159.26,159.22,32.82]
[1752333720573,4.97863012,159.28,159.22,32.82]
[1752333720872,0.67,159.27,159.22,32.82]
[1752333721076,1.45483079,159.27,159.22,0.06]
[1752333721257,16.78468397,159.25,159.23,32.76]
[1752333721570,16.78468397,159.23,159.2,27.08]
[1752333721775,16.78468397,159.21,159.18,0.2]
[1752333721957,16.78468397,159.19,159.17,0.2]
[1752333722157,18.2399585,159.18,159.17,0.2]
[1752333722468,16.78468397,159.17,159.13,27.14]
[1752333722665,16.78468397,159.15,159.13,27.14]
[1752333722853,17.45468397,159.14,159.13,27.14]
[1752333723058,18.24015588,159.14,159.13,27.14]
[1752333723262,17.45468397,159.14,159.13,59.88]
[1752333724260,29.38834332,159.14,159.13,59.88]
[1752333724657,16.78468397,159.13,159.09,0.2]
[1752333724976,16.78468397,159.11,159.09,0.2]
[1752333725411,17.45468397,159.11,159.09,0.2]
[1752333725751,18.24030398,159.11,159.09,0.2]
[1752333726474,18.24030398,159.11,159.1,32.96]
[1752333726679,17.45468397,159.13,159.1,32.96]
[1752333726888,16.78468397,159.11,159.1,32.96]
[1752333727360,17.45468397,159.11,159.1,32.96]
[1752333727971,17.45468397,159.13,159.1,32.96]
[1752333728274,16.78468397,159.11,159.1,32.96]
[1752333728658,0.67,159.14,159.1,32.96]
[1752333728858,16.78468397,159.13,159.1,32.96]
[1752333729057,0.67,159.14,159.1,33.63]
[1752333729461,16.78468397,159.15,159.1,32.96]
[1752333729670,17.45468397,159.15,159.11,0.67]
[1752333730063,0.7853732,159.16,159.12,0.67]
[1752333730264,16.78468397,159.17,159.13,0.67]
[1752333730668,1.4552252,159.19,159.13,0.67]
[1752333730870,16.78468397,159.18,159.13,0.67]
[1752333731077,17.45468397,159.18,159.13,0.67]
[1752333731661,1.45532386,159.17,159.11,0.67]
[1752333731857,17.45468397,159.16,159.11,0.67]
[1752333732091,16.78468397,159.16,159.11,0.67]
[1752333732268,0.67,159.15,159.11,0.67]
[1752333732680,0.67,159.15,159.1,32.96]
[1752333733181,0.7853732,159.16,159.1,33.63]
[1752333733182,0.67,159.14,159.1,33.63]
[1752333733487,0.7853732,159.16,159.11,0.67]
[1752333733679,0.67,159.15,159.11,0.67]
[1752333733890,1.45542255,159.15,159.1,32.96]
[1752333734070,1.45542255,159.15,159.1,33.66]
[1752333734271,1.45542255,159.15,159.11,0.7]
[1752333734802,1.45542255,159.15,159.1,32.96]
[1752333734966,1.45542255,159.15,159.1,33.66]
[1752333735395,0.67,159.15,159.1,33.66]
[1752333735582,0.67,159.15,159.11,0.7]
[1752333736695,0.71,159.17,159.12,0.7]
[1752333737075,16.78468397,159.16,159.12,0.7]
[1752333737269,17.49468397,159.16,159.12,0.7]
[1752333739099,0.71,159.18,159.13,0.7]
[1752333739277,16.78468397,159.17,159.13,0.7]
[1752333739593,147.0664,159.22,159.1,32.96]
[1752333739594,0.71,159.16,159.11,0.7]
[1752333740191,16.78468397,159.17,159.12,0.7]
[1752333740388,0.71,159.18,159.13,0.7]
[1752333741493,17.49468397,159.18,159.13,0.7]
[1752333742580,0.71,159.17,159.11,0.7]
[1752333742768,0.71,159.17,159.1,32.96]
[1752333743087,0.71,159.26,159.14,7.8824]
[1752333743389,0.71,159.26,159.15,1.01511552]
[1752333743602,0.71,159.28,159.17,1.5172]
[1752333743913,16.78468397,159.27,159.18,0.7]
[1752333744072,16.78468397,159.27,159.19,27.1]
[1752333744300,0.71,159.29,159.2,6.9404]
[1752333744603,0.71,159.31,159.21,0.7]
[1752333744798,17.56936695,159.3,159.2,6.2404]
[1752333745028,0.71,159.29,159.2,6.2404]
[1752333745207,16.78468397,159.27,159.2,6.2404]
[1752333745725,16.78468397,159.25,159.2,6.2404]
[1752333745914,0.71,159.24,159.2,6.2404]
[1752333746316,0.71,159.23,159.19,27.1]
[1752333746629,0.71,159.22,159.17,29.3172]
[1752333747505,0.71,159.21,159.17,29.3172]
[1752333747826,0.71,159.21,159.17,28.6172]
[1752333748224,0.71,159.23,159.17,28.6172]
[1752333748526,0.71,159.23,159.18,0.7]
[1752333748724,18.27956404,159.26,159.19,0.7]
[1752333748925,0.71,159.26,159.2,32.7]
[1752333749531,1.49488007,159.26,159.2,33.4]
[1752333751933,1.49488007,159.26,159.17,28.6172]
[1752333751934,17.49468397,159.25,159.17,28.6172]
[1752333752137,1.49497864,159.24,159.18,0.7]
[1752333753105,0.71,159.23,159.17,28.6172]
[1752333753923,0.71,159.23,159.17,29.3172]
[1752333754119,0.71,159.26,159.18,0.7]
[1752333754436,1.49488007,159.26,159.18,0.7]
[1752333754621,0.71,159.25,159.18,0.7]
[1752333755455,0.78497864,159.24,159.18,0.7]
[1752333755727,0.71,159.23,159.18,0.7]
[1752333755926,0.78488007,159.26,159.18,0.7]
[1752333756114,0.71,159.22,159.17,28.6172]
[1752333756527,0.71,159.22,159.18,0.7]
[1752333756940,0.71,159.22,159.17,28.6172]
[1752333757238,0.71,159.21,159.17,27.1]
[1752333757530,0.71,159.21,159.16,6.9404]
[1752333757834,0.71,159.21,159.16,6.2404]
[1752333758127,0.71,159.21,159.17,0.7]
[1752333758303,0.71,159.2,159.15,27.08]
[1752333758504,0.71,159.19,159.14,0.7]
[1752333758715,16.78468397,159.23,159.15,0.7]
[1752333758912,0.71,159.19,159.13,29.4425]
[1752333759727,0.71,159.19,159.13,27.08]
[1752333759907,0.71,159.19,159.11,27.78]
[1752333759908,0.78527453,159.18,159.11,27.78]
[1752333760229,0.71,159.17,159.11,27.78]
[1752333761929,0.71,159.17,159.12,32.68]
[1752333762136,0.71,159.17,159.11,27.78]
[1752333763132,0.78527453,159.18,159.13,0.06]
[1752333763425,0.78527453,159.18,159.14,0.7]
[1752333764008,1.46527453,159.18,159.14,0.7]
[1752333765005,0.68,159.17,159.13,0.06]
[1752333765408,0.68,159.16,159.13,0.06]
[1752333766019,0.78532386,159.17,159.13,0.06]
[1752333766226,1.46532386,159.17,159.13,0.06]
[1752333766425,0.78532386,159.17,159.13,0.74]
[1752333766625,0.78527453,159.18,159.13,0.74]
[1752333766824,0.68,159.17,159.13,0.06]
[1752333767143,0.7853732,159.16,159.14,32.66]
[1752333767317,1.4653732,159.16,159.14,32.66]
[1752333767521,0.68,159.15,159.13,0.06]
[1752333767949,1.46547191,159.14,159.13,0.06]
[1752333769142,18.25015588,159.14,159.13,0.06]
[1752333770539,18.25015588,159.14,159.13,32.72]
[1752333775222,0.78547191,159.14,159.13,32.72]
[1752333775431,0.78542255,159.15,159.13,32.72]
[1752333775661,0.68,159.18,159.13,32.72]
[1752333775973,18.25000783,159.17,159.13,32.72]
[1752333776152,17.57000783,159.17,159.13,32.72]
[1752333776328,0.68,159.16,159.13,32.72]
[1752333777233,1.46542255,159.15,159.13,32.72]
[1752333777437,0.78542255,159.15,159.13,32.72]
[1752333777643,0.7853732,159.16,159.13,32.72]
[1752333777939,1.4653732,159.16,159.13,32.72]
[1752333778728,0.7853732,159.16,159.13,33.4]
[1752333780962,0.7853732,159.16,159.14,0.68]
[1752333781271,0.78512656,159.21,159.14,0.68]
[1752333781432,0.68,159.22,159.14,0.68]
[1752333781794,0.78512656,159.21,159.14,0.68]
[1752333783547,1.46512656,159.21,159.14,0.68]
[1752333783766,0.68,159.21,159.14,0.68]
[1752333784483,0.78517587,159.2,159.14,0.68]
[1752333784649,17.46468397,159.19,159.13,0.06]
[1752333784975,1.46527453,159.18,159.13,0.06]
[1752333785153,1.46527453,159.18,159.13,0.74]
[1752333785346,1.46527453,159.18,159.14,0.68]
[1752333785781,0.68,159.17,159.13,0.06]
[1752333785951,0.68,159.17,159.14,32.64]
[1752333786153,0.68,159.17,159.13,0.74]
[1752333787084,0.78527453,159.18,159.14,0.68]
[1752333787250,1.46527453,159.18,159.13,0.06]
[1752333787449,1.46527453,159.18,159.13,0.74]
[1752333787866,0.78527453,159.18,159.14,0.68]
[1752333788957,0.78527453,159.18,159.15,0.68]
[1752333789266,0.03,159.21,159.16,0.68]
[1752333789473,0.68,159.2,159.15,0.68]
[1752333789777,0.68,159.19,159.15,0.68]
[1752333790280,0.81512656,159.21,159.16,0.68]
[1752333790281,0.03,159.21,159.16,0.68]
[1752333790466,0.03,159.21,159.16,33.3]
[1752333790779,0.71,159.21,159.17,0.68]
[1752333791084,0.71,159.21,159.14,0.68]
[1752333791085,1.46517587,159.2,159.14,0.68]
[1752333792152,0.03,159.21,159.14,0.68]
[1752333792581,0.78517587,159.2,159.14,0.68]
[1752333792889,0.78517587,159.2,159.15,32.62]
[1752333793256,1.46517587,159.2,159.15,33.3]
[1752333793766,1.46517587,159.2,159.16,0.68]
[1752333794474,0.03,159.21,159.15,32.62]
[1752333794675,0.81512656,159.21,159.17,0.69]
[1752333794874,0.81512656,159.21,159.15,32.62]
[1752333795056,0.03,159.21,159.18,0.69]
[1752333795252,0.03,159.21,159.19,0.69]
[1752333795470,0.03,159.21,159.2,32.62]
[1752333795677,0.03,159.21,159.19,0.69]
[1752333795852,0.03,159.21,159.17,0.69]
[1752333796051,0.03,159.21,159.18,0.69]
[1752333797590,0.68,159.2,159.15,0.69]
[1752333797752,0.7852252,159.19,159.13,0.75]
[1752333799185,1.4652252,159.19,159.13,0.75]
[1752333799787,1.4652252,159.19,159.14,32.6]
[1752333800163,1.4652252,159.19,159.15,0.69]
[1752333800354,0.7852252,159.19,159.15,0.69]
[1752333800553,0.78517587,159.2,159.15,0.69]
[1752333800784,1.46517587,159.2,159.14,32.6]
[1752333801081,16.81468397,159.21,159.16,0.69]
[1752333801287,0.78517587,159.2,159.16,0.69]
[1752333801481,1.46517587,159.2,159.16,0.69]
[1752333801995,0.03,159.21,159.17,0.69]
[1752333802153,0.03,159.21,159.18,0.69]
[1752333802355,0.03,159.21,159.19,32.6]
[1752333802670,0.03,159.21,159.19,0.69]
[1752333804389,0.03,159.21,159.2,32.6]
[1752333806500,0.03,159.21,159.2,33.29]
[1752333810000,0.03,159.21,159.2,33.27]
[1752333810199,0.03,159.21,159.2,27.77]
[1752333810407,0.03,159.21,159.2,60.35]
[1752333811094,0.03,159.21,159.18,1.6267]
[1752333811095,0.03,159.21,159.18,29.3967]
[1752333811300,0.03,159.21,159.19,33.27]
[1752333811883,0.68,159.2,159.19,32.58]
[1752333812081,0.03,159.21,159.19,32.58]
[1752333812896,0.03,159.21,159.18,27.08]
[1752333813199,0.71,159.21,159.17,27.77]
[1752333814107,0.03,159.21,159.18,33.27]
[1752333814482,0.03,159.21,159.19,0.69]
[1752333815726,0.03,159.21,159.18,32.58]
[1752333816004,0.68,159.2,159.14,29.3214]
[1752333816781,0.7852252,159.19,159.14,29.3214]
[1752333816994,0.68,159.18,159.14,29.3214]
[1752333817194,16.78468397,159.2,159.14,27.08]
[1752333817400,0.68,159.17,159.13,0.06]
[1752333817904,0.68,159.17,159.13,0.75]
[1752333818390,0.68,159.19,159.14,0.69]
[1752333818580,0.68,159.18,159.14,0.69]
[1752333819093,0.68,159.17,159.15,32.56]
[1752333819299,0.68,159.17,159.13,0.75]
[1752333819499,4.98555738,159.2,159.13,0.06]
[1752333819706,16.78468397,159.18,159.13,0.06]
[1752333820004,17.5699585,159.18,159.13,0.06]
[1752333820188,0.68,159.17,159.13,0.75]
[1752333820388,0.68,159.16,159.13,0.06]
[1752333821001,0.68,159.16,159.14,32.56]
[1752333821211,0.68,159.16,159.13,0.06]
[1752333821383,0.68,159.15,159.13,0.06]
[1752333821585,0.68,159.16,159.13,0.06]
[1752333822507,1.46542255,159.15,159.13,0.06]
[1752333822712,0.78542255,159.15,159.13,0.06]
[1752333823032,0.68,159.14,159.13,0.06]
[1752333823218,17.46468397,159.14,159.13,0.06]
[1752333823506,18.25015588,159.14,159.13,32.62]
[1752333823711,17.46468397,159.14,159.13,32.62]
[1752333824290,21.66728318,159.14,159.13,32.62]
[1752333825519,17.46468397,159.14,159.13,32.62]
[1752333826487,18.25015588,159.14,159.13,32.62]
[1752333826692,22.45335986,159.14,159.13,32.62]
[1752333829515,18.25015588,159.14,159.13,32.62]
[1752333830307,18.28015588,159.14,159.13,32.62]
[1752333833427,18.28015588,159.14,159.13,0.06]
[1752333833607,18.28015588,159.14,159.13,32.62]
[1752333833801,22.47263551,159.14,159.13,32.62]
[1752333835626,18.28015588,159.14,159.13,32.62]
[1752333837521,0.03,159.14,159.13,32.62]
[1752333837822,0.03,159.14,159.13,33.34]
[1752333838439,0.03,159.14,159.13,32.62]
[1752333838603,0.03,159.14,159.13,33.34]
[1752333840429,0.03,159.14,159.13,0.06]
[1752333840605,0.03,159.14,159.13,32.6]
[1752333840800,0.69,159.14,159.13,0.06]
[1752333841018,0.03,159.14,159.13,32.6]
[1752333841211,0.03,159.14,159.13,33.32]
[1752333841529,0.03,159.14,159.13,32.6]
[1752333841904,0.03,159.14,159.13,33.32]
[1752333842524,0.03,159.14,159.13,39.9818]
[1752333843323,0.03,159.14,159.13,41.6046]
[1752333843726,0.03,159.14,159.13,40.8846]
[1752333844101,0.03,159.14,159.13,41.6046]
[1752333845928,0.03,159.14,159.13,34.9428]
[1752333859215,0.03,159.14,159.13,34.2228]
[1752333859417,0.03,159.14,159.13,34.9228]
[1752333861155,0.03,159.14,159.13,35.23850734]
[1752333861326,0.03,159.14,159.13,54.05850734]
[1752333861939,0.03,159.14,159.13,77.39229131]
[1752333862248,0.03,159.21,159.15,18.82]
[1752333862544,0.03,159.21,159.16,32.81525346]
[1752333862732,0.03,159.21,159.16,33.51525346]
[1752333863031,0.03,159.21,159.17,0.7]
[1752333863231,0.03,159.21,159.18,32.5]
[1752333863443,0.03,159.21,159.19,0.7]
[1752333863743,0.03,159.21,159.2,32.5]
[1752333863946,0.71,159.2,159.16,0.31525346]
[1752333864146,0.03,159.21,159.17,33.18]
[1752333864448,0.03,159.21,159.18,32.48]
[1752333864751,0.03,159.21,159.18,33.18]
[1752333865330,0.03,159.21,159.18,32.48]
[1752333865741,0.74,159.21,159.18,32.48]
[1752333867335,0.71,159.2,159.17,27.1]
[1752333867656,0.03,159.21,159.17,27.1]
[1752333868155,0.74,159.21,159.17,27.8]
[1752333868344,0.03,159.21,159.18,0.7]
[1752333868656,0.03,159.21,159.18,33.18]
[1752333868856,0.74,159.21,159.18,32.48]
[1752333869060,0.71,159.2,159.17,27.1]
[1752333869230,0.71,159.19,159.15,6.2164]
[1752333869429,0.74,159.21,159.16,27.8]
[1752333869851,0.71,159.2,159.16,27.8]
[1752333870353,0.71,159.2,159.17,32.48]
[1752333871645,0.71,159.19,159.13,29.4628]
[1752333871954,0.71,159.19,159.13,27.14]
[1752333873029,0.71,159.19,159.14,32.48]
[1752333873251,0.74,159.19,159.13,27.14]
[1752333874926,0.74,159.19,159.14,32.46]
[1752333875124,0.74,159.19,159.13,27.14]
[1752333876032,0.74,159.19,159.13,27.84]
[1752333877066,0.74,159.19,159.14,32.46]
[1752333877355,0.74,159.19,159.13,27.84]
[1752333877559,0.74,159.19,159.13,27.14]
[1752333879256,0.78527453,159.18,159.13,27.14]
[1752333879472,0.71,159.17,159.13,27.14]
[1752333881348,0.8152252,159.19,159.13,27.14]
[1752333881561,1.49527453,159.18,159.14,33.16]
[1752333881757,0.71,159.18,159.14,33.16]
[1752333882166,0.71,159.17,159.14,33.16]
[1752333882390,0.71,159.16,159.13,27.14]
[1752333882973,0.71,159.16,159.13,27.84]
[1752333883173,1.49527453,159.18,159.13,27.84]
[1752333883356,0.71,159.18,159.14,0.7]
[1752333883757,0.71,159.17,159.14,0.7]
[1752333884070,0.67,159.16,159.13,27.14]
[1752333884443,0.67,159.16,159.14,32.46]
[1752333884645,0.67,159.16,159.13,27.14]
[1752333885269,0.67,159.18,159.13,27.81]
[1752333887170,0.78532386,159.17,159.13,27.81]
[1752333887368,0.67,159.16,159.13,27.81]
[1752333887584,0.67,159.16,159.13,0.73]
[1752333889559,0.67,159.16,159.14,32.46]
[1752333889765,0.67,159.15,159.13,0.06]
[1752333892495,0.67,159.15,159.14,32.46]
[1752333892656,0.67,159.15,159.13,0.06]
[1752333894083,0.67,159.14,159.13,0.06]
[1752333895582,0.67,159.14,159.13,32.5]
[1752333897387,17.45468397,159.14,159.13,0.06]
[1752333897775,18.24015588,159.14,159.13,32.5]
[1752333898129,16.78468397,159.12,159.1,0.2]
[1752333898281,4.9860278,159.11,159.09,0.2]
[1752333898485,1.6024,159.1,159.06,0.06]
[1752333898680,16.78468397,159.08,159.06,0.06]
[1752333898876,21.77090932,159.07,159.06,0.06]
[1752333899111,22.44090932,159.07,159.06,0.06]
[1752333899312,16.78468397,159.06,159.04,27.1]
[1752333899600,22.60869176,159.06,159.02,0.2]
[1752333899803,16.78468397,159.04,159.02,0.2]
[1752333900106,21.77110697,159.03,159.02,0.2]
[1752333900614,22.44110697,159.03,159.02,0.2]
[1752333900796,22.44110697,159.03,159.02,32.64]
[1752333901181,35.9676893,159.03,159.02,32.64]
[1752333901699,14.31259754,159.03,159.02,32.64]
[1752333901904,13.52658233,159.03,159.02,33.31]
[1752333902409,13.52658233,159.03,159.02,32.64]
[1752333904088,13.52658233,159.03,159.02,33.31]
[1752333904393,13.52658233,159.03,159.02,32.64]
[1752333905207,14.19658233,159.03,159.02,32.64]
[1752333905416,30.9812663,159.03,159.02,32.64]
[1752333905591,31.76728151,159.03,159.02,32.64]
[1752333905925,30.9812663,159.03,159.02,32.64]
[1752333906414,32.6186663,159.03,159.02,32.64]
[1752333908288,38.8791663,159.03,159.02,0.2]
[1752333908490,39.66518151,159.03,159.02,0.2]
[1752333908718,49.66518151,159.03,159.02,0.2]
[1752333908926,53.82680578,159.03,159.02,0.2]
[1752333909286,27.20398397,159.02,158.97,0.2]
[1752333909491,16.78468397,159.0,158.97,0.2]
[1752333909708,16.78468397,158.98,158.97,0.2]
[1752333910120,17.45468397,158.98,158.97,0.2]
[1752333910612,17.45468397,158.98,158.97,32.64]
[1752333911196,29.42581597,158.98,158.97,32.64]
[1752333911899,29.42581597,158.98,158.97,0.2]
[1752333912106,35.65551597,158.98,158.97,0.2]
[1752333913098,45.65551597,158.98,158.97,0.2]
[1752333913497,35.65551597,158.98,158.97,0.2]
[1752333913896,35.65551597,158.98,158.96,32.64]
[1752333913897,16.78468397,158.96,158.95,0.2]
[1752333914100,17.57104531,158.96,158.95,0.2]
[1752333914306,38.90178503,158.96,158.93,32.52]
[1752333914620,16.78468397,158.94,158.93,32.52]
[1752333914822,16.78468397,158.94,158.85,0.73]
[1752333914823,145.5,158.93,158.91,0.2]
[1752333915126,35.37594324,158.92,158.91,0.2]
[1752333915412,36.55538113,158.92,158.91,0.2]
[1752333915616,28.75068113,158.92,158.91,0.2]
[1752333916419,28.08068113,158.92,158.91,0.2]
[1752333916813,28.75068113,158.92,158.91,0.2]
[1752333917019,28.75068113,158.92,158.91,32.66]
[1752333918801,38.75068113,158.92,158.91,32.66]
[1752333920646,16.78468397,158.9,158.85,0.06]
[1752333920799,16.78468397,158.88,158.85,0.06]
[1752333921112,16.78468397,158.86,158.85,0.06]
[1752333921828,17.45468397,158.86,158.85,32.52]
[1752333922128,25.94899671,158.86,158.85,32.52]
[1752333922324,26.73585306,158.86,158.85,32.52]
[1752333922622,26.73585306,158.86,158.85,33.22]
[1752333922823,26.73585306,158.86,158.85,0.06]
[1752333923136,27.40585306,158.86,158.85,32.52]
[1752333923622,27.40585306,158.86,158.77,28.9589]
[1752333923812,16.78468397,158.84,158.77,27.32]
[1752333924014,146.17,158.85,158.77,27.32]
[1752333924015,16.78468397,158.82,158.77,27.32]
[1752333924227,16.78468397,158.8,158.77,27.32]
[1752333924434,16.78468397,158.78,158.77,27.32]
[1752333924933,16.78468397,158.78,158.77,59.78]
[1752333925317,0.78710408,158.81,158.77,60.48]
[1752333925648,8.96902568,158.82,158.78,0.7]
[1752333925804,8.96902568,158.82,158.79,7.9624]
[1752333926007,8.96902568,158.82,158.8,0.7]
[1752333928230,8.96902568,158.82,158.81,32.46]
[1752333928433,8.96902568,158.82,158.8,0.7]
[1752333928641,0.78710408,158.81,158.8,0.7]
[1752333929635,0.78710408,158.81,158.79,7.9624]
[1752333929838,0.78710408,158.81,158.79,2.3365]
[1752333930013,0.78710408,158.81,158.79,0.7]
[1752333930828,16.78468397,158.8,158.77,28.02]
[1752333931029,0.78720322,158.79,158.77,28.02]
[1752333931423,16.78468397,158.78,158.77,27.32]
[1752333931629,16.78468397,158.78,158.77,59.78]
[1752333932042,17.57193677,158.78,158.77,59.78]
[1752333932736,18.24193677,158.78,158.77,27.32]
[1752333932938,16.78468397,158.79,158.77,59.78]
[1752333933145,0.7872528,158.78,158.77,59.78]
[1752333933447,18.24193677,158.78,158.77,0.2]
[1752333933643,28.24193677,158.78,158.77,0.2]
[1752333933822,18.24193677,158.78,158.77,0.2]
[1752333934421,17.57193677,158.78,158.77,0.2]
[1752333937659,18.24193677,158.78,158.77,0.2]
[1752333938529,8.96902568,158.82,158.77,0.9]
[1752333938729,8.96902568,158.82,158.78,0.7]
[1752333941574,17.57178805,158.81,158.77,0.2]
[1752333941776,17.57178805,158.81,158.78,0.7]
[1752333942138,17.57178805,158.81,158.77,0.2]
[1752333942350,17.57178805,158.81,158.77,0.9]
[1752333942865,16.78468397,158.79,158.77,0.2]
[1752333943073,17.57193677,158.78,158.77,0.2]
[1752333943249,18.24193677,158.78,158.77,0.2]
[1752333943667,17.57193677,158.78,158.77,0.2]
[1752333944164,18.24193677,158.78,158.77,0.2]
[1752333948846,17.57193677,158.78,158.77,0.2]
[1752333949449,18.24193677,158.78,158.77,0.2]
[1752333952246,17.57193677,158.78,158.77,0.2]
[1752333952648,18.24193677,158.78,158.77,0.2]
[1752333952874,17.57193677,158.78,158.77,0.2]
[1752333953770,18.24193677,158.78,158.77,0.2]
[1752333955569,22.41175631,158.78,158.77,0.2]
[1752333958570,28.68775631,158.78,158.77,0.2]
[1752333961392,23.06068397,158.77,158.76,0.1]
[1752333961685,27.90050351,158.77,158.76,0.1]
[1752333961985,28.68780589,158.77,158.76,0.1]
[1752333963766,20.95450351,158.77,158.76,0.77]
[1752333964089,16.78468397,158.78,158.76,0.77]
[1752333964293,145.5,158.81,158.76,0.77]
[1752333964294,4.96621705,158.77,158.76,0.77]
[1752333964496,0.78730238,158.77,158.76,0.1]
[1752333964865,4.96621705,158.77,158.76,0.1]
[1752333965192,0.78730238,158.77,158.76,0.1]
[1752333966171,17.57198635,158.77,158.76,0.1]
[1752333966366,22.42090102,158.77,158.76,0.1]
[1752333968569,28.69690102,158.77,158.76,0.1]
[1752333970423,21.75090102,158.77,158.76,0.1]
[1752333970585,21.75090102,158.77,158.76,0.77]
[1752333970586,4.96621705,158.77,158.76,0.77]
[1752333970781,0.78730238,158.77,158.76,0.77]
[1752333971613,4.96955396,158.77,158.76,0.77]
[1752333972788,21.75423793,158.77,158.76,0.1]
[1752333973400,21.75423793,158.77,158.76,0.77]
[1752333974010,21.75423793,158.77,158.76,0.1]
[1752333974912,21.75423793,158.77,158.76,0.81]
[1752333975093,21.75423793,158.77,158.76,0.1]
[1752333976820,22.46423793,158.77,158.76,0.1]
[1752333978725,22.46423793,158.77,158.75,32.68]
[1752333978726,16.78468397,158.76,158.75,32.68]
[1752333978896,21.67693555,158.76,158.75,32.68]
[1752333979222,21.75428752,158.76,158.75,32.68]
[1752333979803,22.46428752,158.76,158.75,32.68]
[1752333979994,21.75428752,158.76,158.75,32.68]
[1752333980994,22.46428752,158.76,158.75,32.68]
[1752333982129,21.75428752,158.76,158.75,32.68]
[1752333982836,22.46428752,158.76,158.75,32.68]
[1752333983630,22.46428752,158.76,158.75,0.2]
[1752333983792,22.46428752,158.76,158.72,32.48]
[1752333984131,16.78468397,158.74,158.72,32.48]
[1752333984297,16.78468397,158.72,158.65,0.71]
[1752333984498,16.78468397,158.7,158.65,0.71]
[1752333984828,16.78468397,158.68,158.65,0.71]
[1752333985006,16.78468397,158.66,158.65,0.71]
[1752333985203,20.97459624,158.66,158.65,0.71]
[1752333985526,4.18991227,158.66,158.65,33.19]
[1752333985698,4.97766119,158.68,158.65,33.19]
[1752333985899,4.97766119,158.68,158.66,0.71]
[1752333986421,16.78468397,158.67,158.64,0.71]
[1752333986599,16.78468397,158.67,158.61,0.1]
[1752333986600,16.78468397,158.65,158.61,0.1]
[1752333986802,16.78468397,158.63,158.61,0.1]
[1752333987003,0.7880469,158.62,158.61,0.1]
[1752333987219,4.97737093,158.62,158.61,32.6]